{"text_format":"1","workbook":"xlsx","n_sheets":6,"sheets":["Herrerække","Damerække","9-huls Damerække","9-huls Herrerække","Ark1","Ark2"],"not_rendered":{"charts":0,"images":0,"macros":1,"external_links":0,"defined_names":5,"comments":0,"pivot_tables":0},"unopened":[],"bounds":{"document_bytes":16777216,"sheet_cells":100000,"rows_first":2000,"rows_last":500,"rows_between":2000,"halvings":0,"cell_chars":16384,"cell_head_chars":4096},"cells_cut":0,"cells_raw":0,"read":"whole","date_system":"1900"}

{"sheet":"Herrerække","index":0,"n_rows":105,"n_cols":24,"rows_kept":105,"cut":false,"hidden":false,"merged":[]}
["HA    Herrerække        A",null,null,null,null,null,null,null,null,null,null,null,null,null,null,null,null,null,null,null,null,null,"ÅR","10 bedste score"]
["hcp.      +8 - 25,9",null,"hcp.","2022-04-08","2022-04-22","2022-04-29","2022-06-03","2022-06-10","2022-06-24","2022-06-30","2022-07-07","2022-07-14","2022-07-21","2022-07-28","2022-08-04","2022-08-19","2022-08-26","2022-09-02","2022-09-08","2022-09-16","2022-09-23","2022-09-30",2022,2022]
[]
["Erik","Andersen",15.5,null,null,null,null,null,null,null,null,null,null,null,null,5,null,null,null,null,null,null,{"$f":"SUM(D4:V4)","v":5}]
["Jørgen","Stoltz",17.3,null,null,null,null,null,null,null,null,null,7,null,null,null,null,6,null,null,null,null,13]
["Rudi","Brustis Landsdorf",17.7,null,null,null,null,null,null,null,null,null,null,null,null,null,null,null,null,null,null,null,0]
["Børge","Exaudi",18.100000000000001,null,4,null,null,null,null,null,null,null,null,null,null,null,null,null,null,null,null,10,14]
["Hans","Eriksen",18.600000000000001,10,5,null,3,null,5,10,7,null,6,3,6,null,null,null,null,4,4,null,63]
["Vagn","Søllested",18.7,null,null,7,null,null,null,null,null,null,5,null,5,null,null,null,6,-2,null,null,21]
["Mogens","Madsen",18.8,8,null,null,null,null,null,null,5,null,null,null,null,null,null,null,null,5,null,null,18]
["Henrik","Jacobsgaard",20.399999999999999,null,null,6,null,null,null,null,null,null,null,null,null,null,null,null,null,null,null,null,6]
["Ole","Lübcke",20.5,null,null,null,10,null,null,5,null,8,8,null,null,null,null,null,null,3,null,null,34]
["Finn","Sørensen",20.7,null,null,null,8,4,null,null,null,null,null,null,4,null,null,null,null,null,null,null,16]
["Lars","Jacobsen",21.1,null,null,null,null,null,null,null,null,null,null,null,null,null,null,5,null,null,null,null,5]
["Erik Vedel","Jensen",21.3,null,null,null,null,-2,-2,null,null,null,null,null,null,null,null,-2,null,-2,-2,null,-10]
["Ernst C.C.","Leuring",22.5,null,null,null,null,null,null,null,null,null,null,null,null,null,3,null,null,null,null,3,6]
["Poul Werner","Odér",22.7,null,null,null,null,null,null,null,null,null,null,null,null,null,null,null,null,null,null,null,0]
["Jørn","Larsen",22.8,null,null,null,null,null,null,4,null,null,null,null,null,null,10,null,8,null,5,7,34]
["Knud Erik","Andersen",23,null,null,null,4,10,6,null,6,3,null,null,10,null,null,10,10,7,3,6,75]
["Ole","Meldgaard",23.3,null,null,null,null,3,null,null,null,null,null,null,null,null,8,null,null,null,null,-2,9]
["Per","Bøgebjerg",23.4,3,null,10,null,null,8,null,null,4,null,10,3,4,4,null,null,null,10,null,56]
["Klaus","Bjerre",23.4,null,null,null,null,null,null,6,null,5,null,null,null,null,null,null,null,null,null,null,11]
["Søren","Grønbech",23.6,null,null,null,null,-2,-2,null,null,null,null,null,null,null,null,-2,null,-2,-2,-2,-12]
["Max","Borgholt",23.7,5,null,null,null,null,7,8,8,null,4,7,8,3,5,8,null,10,8,8,89]
["Peter Birger","Tøttrup",23.7,null,null,null,null,null,null,null,null,null,null,null,null,null,null,null,null,null,null,null,0]
["Jørn","Eisbo",23.8,null,null,null,null,5,3,null,10,null,-2,6,null,10,null,null,null,null,7,null,39]
["Flemming","Thaarup",23.8,null,null,null,null,null,null,null,null,null,null,null,null,null,null,null,null,null,null,null,0]
["Ib","Bertelsen",24.1,7,10,4,5,8,4,7,4,7,null,null,null,6,null,7,null,8,null,5,82]
["Jack","Rasmussen",24.3,6,7,null,6,7,null,3,3,10,null,8,null,null,null,null,3,6,null,null,59,7]
["Claus","Winther",24.3,4,null,5,null,null,null,null,null,null,null,null,null,null,null,3,5,null,null,null,17,7]
["Svend","Kay",24.4,null,null,3,null,null,null,null,null,null,null,null,null,null,7,null,null,null,null,null,10,7]
["Poul","Christensen",24.6,-2,3,null,7,null,10,null,null,null,10,null,null,null,null,null,null,null,null,null,28,6]
["Mogens Flemming","Andersen",24.6,null,null,null,null,6,null,null,null,null,null,4,null,null,null,null,null,-2,null,4,12,5]
["Ole","Hahn",24.7,null,6,null,null,null,null,null,null,6,null,5,7,null,null,null,4,null,null,null,28,4]
["Uffe","Fromberg",24.9,null,null,null,null,null,null,null,-2,null,null,null,null,null,null,null,null,null,null,null,-2,4]
["Per","Bjørk",25,null,8,8,null,null,null,null,null,null,null,null,null,8,null,null,7,null,null,null,{"$f":"SUM(D36:V36)","v":31},4]
["Lars","Hansson",25.2,null,null,null,null,null,null,null,null,null,null,null,null,null,null,null,null,null,null,null,0,4]
["Leif Vangsbo","Madsen",25.2,null,null,null,null,null,null,null,null,null,null,null,null,null,null,null,null,null,null,-2,-2,3]
["Kent","Hestehave",25.3,null,null,null,null,null,null,null,null,null,null,null,null,null,null,null,null,null,6,-2,4,0]
["Kurt","Kristoffersen",25.9,null,null,null,null,null,null,null,null,null,3,null,null,null,6,null,null,-2,null,-2,5,0]
["Per","Grim","25;4",null,null,null,null,null,null,null,null,null,null,null,null,7,null,4,null,null,null,null,11,0]
[null,null,null,null,null,null,null,null,null,null,null,null,null,null,null,null,null,null,null,null,null,null,0,0]
[null,null,null,null,null,null,null,null,null,null,null,null,null,null,null,null,null,null,null,null,null,null,0,0]
[null,null,null,null,null,null,null,null,null,null,null,null,null,null,null,null,null,null,null,null,null,null,0,0]
[null,null,null,null,null,null,null,null,null,null,null,null,null,null,null,null,null,null,null,null,null,null,0,0]
[null,null,null,null,null,null,null,null,null,null,null,null,null,null,null,null,null,null,null,null,null,null,0,0]
[null,null,null,null,null,null,null,null,null,null,null,null,null,null,null,null,null,null,null,null,null,null,0,0]
[null,null,null,null,null,null,null,null,null,null,null,null,null,null,null,null,null,null,null,null,null,null,0,0]
[null,null,null,null,null,null,null,null,null,null,null,null,null,null,null,null,null,null,null,null,null,null,0]
[null,null,null,null,null,null,null,null,null,null,null,null,null,null,null,null,null,null,null,null,null,null,0]
[null,null,null,null,null,null,null,null,null,null,null,null,null,null,null,null,null,null,null,null,null,null,0]
[null,null,null,null,null,null,null,null,null,null,null,null,null,null,null,null,null,null,null,null,null,null,0]
[null,null,null,null,null,null,null,null,null,null,null,null,null,null,null,null,null,null,null,null,null,null,0]
[]
[]
[]
[]
["HB    Herrerække        A","B",null,null,null,null,null,null,null,null,null,null,null,null,null,null,null,null,null,null,null,null,"ÅR","10 bedste score"]
["Hcp. 26,0-45,0",null,"hcp.",{"$f":"D2","v":"2022-04-08"},{"$f":"E2","v":"2022-04-22"},"2022-04-29","2022-06-03","2022-06-10","2022-06-24","2022-06-30","2022-07-07","2022-07-14","2022-07-21","2022-07-28","2022-08-04","2022-08-19","2022-08-26","2022-09-02","2022-09-08","2022-09-16","2022-09-23","2022-09-30",2022,2022]
[]
["Flemming ","Toft",26,null,null,null,8,null,null,10,null,null,null,null,null,null,null,null,null,null,null,null,{"$f":"SUM(D61:V61)","v":18}]
["Jørn","Finne-Ipsen",26.1,null,null,null,null,null,null,null,null,null,null,null,null,null,null,null,null,null,null,null,0]
["Per","Bobsin",26.5,3,null,null,null,null,6,4,null,null,null,null,null,null,8,3,null,10,null,8,42]
["Fredrik","Milde",26.8,null,null,6,null,null,null,null,4,10,null,null,null,null,null,null,null,null,null,6,26]
["Karl Erik","Mikkelsen",26.9,null,null,8,5,null,null,null,null,null,null,null,null,null,null,4,8,null,null,3,28]
["Ole","Schmidt",27.1,5,null,null,6,null,null,null,null,null,10,null,null,null,7,null,6,null,null,4,38]
["Henning","Clemmensen",27.5,null,null,null,null,6,null,5,null,4,null,6,null,null,null,null,null,null,null,null,21]
["Kim","Alkestrup",27.7,4,null,null,null,null,null,null,null,null,null,null,null,null,null,8,null,null,null,null,12]
["Niels Erik","Eriksen",27.8,-2,null,null,null,null,null,null,null,null,null,null,3,null,null,null,null,null,7,null,8]
["Søren","Eriksen",28,null,null,null,null,null,null,null,null,null,6,5,null,null,null,null,null,null,null,null,11]
["Erik","Poulsen",28.1,null,3,null,null,10,8,7,null,8,null,null,null,null,null,null,null,null,null,null,36]
["Erland","Jørgensen",28.4,null,7,null,null,7,3,null,null,7,null,null,null,null,null,null,5,4,5,7,45]
["Leif","Thomsen",28.8,null,8,null,null,null,null,null,null,null,null,null,null,null,null,null,null,null,3,null,11]
["Jan Backer","Thomsen",29.3,null,null,10,3,null,null,null,null,null,null,7,5,null,null,null,null,null,null,null,25]
["Arne","Bergmann",29.4,null,null,null,null,null,null,null,10,null,null,null,null,null,null,null,null,null,null,null,10]
["Jørgen","Krampau",29.6,null,null,null,null,null,null,null,-2,null,null,null,null,null,-2,null,null,null,null,null,-4]
["Jørgen","Gylling",29.7,null,null,null,null,null,null,null,null,null,null,null,null,null,null,null,null,null,null,null,0]
["Benny H.","Nielsen",29.8,null,6,7,4,null,10,8,7,6,8,null,10,4,5,7,4,5,null,null,91]
["Jørgen","Wiell",29.8,null,null,null,null,null,null,null,null,null,null,null,null,null,null,null,null,null,null,null,0]
["Frank","Kallehave",29.8,null,null,null,null,null,4,null,null,null,null,4,null,10,-2,null,null,null,null,null,16]
["Leif","Jørgensen",30.1,null,null,3,null,5,null,null,null,null,4,null,7,6,null,null,3,null,null,null,28]
["Erik Nybro","Olsen",30.3,null,null,null,null,null,null,null,null,null,null,null,null,null,null,null,null,null,null,null,0]
["Flemming","Bech",30.5,7,4,null,7,4,null,6,8,null,5,8,null,7,null,null,null,3,null,10,69]
["Jens Holm","Nielsen",30.7,null,null,null,null,null,null,null,null,null,null,null,null,null,null,null,null,null,null,null,0]
["Jan","Halborg",31.3,null,null,null,null,null,null,null,null,null,null,null,null,null,null,null,null,null,null,null,0]
["Jørn Kragh","Nielsen",31.6,null,null,4,null,null,null,null,null,null,null,null,8,null,null,null,10,null,null,null,22]
["Per Fibæk","Laursen",32.799999999999997,8,10,null,10,null,null,null,null,null,null,3,null,8,6,null,null,null,6,null,51]
["Torben Steen","Jensen",34.1,null,null,5,null,3,null,null,null,null,null,null,null,3,3,null,null,7,8,null,29]
["Torben Lønborg","Høpfner",34.200000000000003,null,null,null,null,null,null,null,null,null,null,null,null,null,null,null,null,null,null,null,0]
["Kenneth","Larsen",34.299999999999997,null,null,null,null,null,null,null,null,null,null,null,null,null,null,null,null,null,null,null,0]
["Erik V.","Poulsen",34.6,6,null,null,null,null,5,null,6,null,null,null,null,null,null,null,-2,null,null,-2,13]
["Gert Willy","Andersen",34.9,null,null,null,null,null,null,null,null,null,3,null,null,null,null,null,null,6,10,null,19]
["Michael","Bremer",35.1,null,null,null,null,null,null,3,null,null,null,null,null,null,null,null,null,null,null,null,3]
["Bent H.","Thomsen",36,-2,null,null,-2,-2,-2,null,-2,null,null,null,null,null,null,null,null,null,null,null,-10]
["Torben Bonde","Mikkelsen",36.9,null,5,null,null,null,null,null,3,null,null,null,null,5,null,null,null,null,null,5,18]
["Frede V.","Nielsen",38.4,null,null,null,null,null,null,null,null,null,null,null,null,null,null,null,null,null,null,null,0]
["Sven","Ipsen",39.200000000000003,null,null,null,null,null,null,null,null,null,7,null,null,null,null,null,null,-2,null,null,5]
["Mogens","Nielsen",39.799999999999997,10,null,null,null,null,null,null,5,3,null,10,4,null,10,10,7,8,4,null,71]
["Jens","Falck-Jensen",44.2,null,null,null,null,null,null,null,null,null,null,null,null,null,null,null,null,null,null,null,0]
["Ib","Bjørnram",44.9,null,null,null,null,null,null,null,null,null,null,null,null,null,null,null,null,null,null,null,0]
["Henrik","Olsen",33.700000000000003,null,null,null,null,null,7,null,null,5,null,null,6,null,null,5,null,null,null,null,23]
["Henrik","Lusty",40.299999999999997,null,null,null,null,8,null,null,null,null,null,null,null,null,4,6,null,null,null,null,18]
[null,null,null,null,null,null,null,null,null,null,null,null,null,null,null,null,null,null,null,null,null,null,0]
[null,null,null,null,null,null,null,null,null,null,null,null,null,null,null,null,null,null,null,null,null,null,0]
[null,null,null,null,null,null,null,null,null,null,null,null,null,null,null,null,null,null,null,null,null,null,0]

{"sheet":"Damerække","index":1,"n_rows":74,"n_cols":24,"rows_kept":74,"cut":false,"hidden":false,"merged":[]}
["DA   Damerække        A",null,null,null,null,null,null,null,null,null,null,null,null,null,null,null,null,null,null,null,null,null,"ÅR","10 bedste score"]
["hcp.  +8 - 30.9",null,"hcp.","2022-04-08","2022-04-22","2022-04-29","2022-06-03","2022-06-10","2022-06-24","2022-06-30","2022-07-07","2022-07-14","2022-07-21","2022-07-28","2022-08-04","2022-08-19","2022-08-26","2022-09-02","2022-09-08","2022-09-16","2022-09-23","2022-09-30",2022,2022]
[]
["Charlotte","Bjerre",13.4,null,null,null,null,null,null,8,4,5,null,3,10,null,null,null,null,5,null,null,{"$f":"SUM(D4:V4)","v":35}]
["Bodil","Thaarup",19.5,null,null,null,null,null,null,null,null,null,null,5,null,null,null,null,5,null,null,null,10]
["Ingelise","Badsted",21.4,null,null,null,8,null,4,null,null,null,6,null,8,null,10,null,null,8,8,10,62]
["Winnie","Bech",22.3,7,8,null,10,8,10,7,10,6,10,8,6,10,7,6,null,null,null,3,116]
["Berit","Vardil",22.9,5,5,null,null,null,null,10,null,7,7,7,null,6,4,3,10,4,5,4,77]
["Helle","Odér",23.6,null,null,null,null,null,7,null,null,null,null,null,null,null,null,null,null,null,null,null,7]
["Birgit","Secher",23.7,3,null,null,null,10,null,null,null,null,3,-2,null,null,null,5,3,null,null,null,22]
["Aase","Skytte",23.9,null,7,null,6,6,6,null,8,null,null,10,null,null,null,null,null,null,7,null,50]
["Marianne","Poulsen",24.3,null,null,null,null,null,null,null,null,null,null,null,null,null,null,null,null,null,null,null,0]
["Eva Alkestrup","Skop",24.5,null,10,10,null,3,null,null,null,null,null,null,null,null,null,null,null,null,null,null,23]
["Vibeke","Willumsen",25,null,null,4,null,null,5,null,null,null,null,4,null,null,5,null,null,6,4,null,28]
["Lise","Hove",25.1,null,null,null,3,null,null,null,null,3,4,null,null,null,null,7,6,10,null,null,33]
["Bente","Bertelsen",25.7,null,3,7,5,4,8,3,3,null,null,null,null,null,null,null,null,null,null,null,33]
["Ina","Kristensen",26.3,null,null,3,null,7,3,4,6,10,null,6,7,null,null,null,null,null,null,null,46]
["Lisbeth","Bjørk",26.3,null,4,6,null,5,null,null,null,null,null,null,4,7,3,10,null,null,6,7,52]
["Dorte","Helvig",26.9,4,null,5,7,null,null,null,7,4,8,null,5,8,null,8,7,null,3,5,71]
["Francoise Brustis","Landsdorf",28.3,null,null,null,null,null,null,null,null,null,null,null,null,null,null,null,null,null,null,null,0]
["Susanne Nyholm","Leuring",29.3,6,6,null,null,null,null,6,null,null,null,null,null,null,null,4,null,null,10,6,38]
["Dorte","Schmidt",29.7,10,null,null,4,null,null,null,null,null,5,null,3,null,null,null,4,7,null,null,33]
["Lis Østergaard","Johansen",30,null,null,null,null,null,null,null,null,null,null,null,null,null,null,null,null,null,null,null,0]
["Jonna","Pedersen",30.8,null,null,null,null,null,null,null,null,null,null,null,null,null,null,null,null,null,null,null,0]
["Else Marie","Alsen",30.9,8,null,8,null,null,null,5,5,8,null,null,null,null,6,null,8,3,null,8,59]
[null,null,null,null,null,null,null,null,null,null,null,null,null,null,null,null,null,null,null,null,null,null,0]
[null,null,null,null,null,null,null,null,null,null,null,null,null,null,null,null,null,null,null,null,null,null,0]
[null,null,null,null,null,null,null,null,null,null,null,null,null,null,null,null,null,null,null,null,null,null,0]
[null,null,null,null,null,null,null,null,null,null,null,null,null,null,null,null,null,null,null,null,null,null,0]
[null,null,null,null,null,null,null,null,null,null,null,null,null,null,null,null,null,null,null,null,null,null,0]
[null,null,null,null,null,null,null,null,null,null,null,null,null,null,null,null,null,null,null,null,null,null,0]
[null,null,null,null,null,null,null,null,null,null,null,null,null,null,null,null,null,null,null,null,null,null,0]
[]
[]
[]
["DB   Damerække        B",null,null,null,null,null,null,null,null,null,null,null,null,null,null,null,null,null,null,null,null,null,"ÅR","10 bedste score"]
["hcp.    30,0 - 45,0",null,"hcp.",{"$f":"D2","v":"2022-04-08"},{"$f":"E2","v":"2022-04-22"},"2022-04-29","2022-06-03","2022-06-10","2022-06-24","2022-06-30","2022-07-07","2022-07-14","2022-07-21","2022-07-28","2022-08-04","2022-08-19","2022-08-26","2022-09-02","2022-09-08","2022-09-16","2022-09-23","2022-09-30",2022,2022]
[]
["Helle","Jensen",31.8,null,5,null,null,null,null,null,10,null,null,null,null,null,8,6,6,null,10,8,{"$f":"SUM(D39:V39)","v":53}]
["Bessie","Hejselbak",32,null,null,null,null,6,null,null,null,null,null,7,null,null,null,null,null,null,null,null,13]
["Ingrid Cronqvist","Christensen",32,null,null,4,null,null,4,8,null,null,null,4,10,null,null,null,null,null,3,5,38]
["Grethe","Jørgensen",32.200000000000003,null,6,null,null,-2,3,null,3,null,null,null,6,-2,null,4,-2,5,-2,4,23]
["Lene W.","Bobsin",32.299999999999997,4,null,null,8,4,null,null,null,8,null,null,null,4,null,null,7,6,null,7,48]
["Alice","Waldner",32.4,null,null,null,5,3,5,6,null,5,5,10,null,null,4,5,10,10,4,null,72]
["Lene","Kristoffersen",32.6,null,null,null,null,null,null,null,null,null,null,null,3,null,null,null,null,null,6,-2,7]
["Marianne Bækbo","Jacobsgaard",32.6,null,null,null,null,null,null,null,null,null,null,null,null,null,null,null,null,null,null,null,0]
["Lone","Kay",33.6,null,null,null,null,null,null,null,null,null,null,null,-2,null,3,null,null,null,null,null,1]
["Alice","Ipsen",33.9,null,3,3,null,null,8,null,null,null,4,3,null,null,10,8,null,null,null,null,39]
["Pia","Engbirk",33.9,null,null,null,null,null,-2,null,null,null,null,null,null,null,null,null,null,null,null,null,-2]
["Grethe Ulrich","Hansen",34.200000000000003,null,null,null,null,null,null,null,null,null,null,null,null,null,null,null,null,null,null,null,0]
["Karin","Christensen",34.200000000000003,null,10,7,null,null,null,5,null,null,null,null,null,7,5,null,3,8,null,10,55]
["Inge Lise","Eisbo",34.5,5,null,null,6,10,10,null,7,10,3,5,8,8,6,null,4,7,7,6,102]
["Lilian Britta","Ekelund",34.6,null,8,6,null,7,null,4,null,6,null,6,null,null,null,null,null,null,null,null,37]
["Vibeke","Halborg",35.299999999999997,null,null,null,null,null,null,null,null,null,null,null,null,null,null,null,null,null,null,null,0]
["Aase ","Bremer",35.5,10,7,5,4,null,7,5,null,null,10,null,5,10,7,7,8,4,8,3,100]
["Rita","Jensen",35.6,null,null,null,null,null,6,null,4,7,null,null,null,null,null,null,null,null,null,null,17]
["Bente Lønborg","Høpfner",35.700000000000003,null,null,null,null,null,null,null,null,null,null,null,null,null,null,null,null,null,null,null,0]
["Jonna","Stoltz",36.1,null,null,null,3,null,null,null,null,null,7,-2,null,5,null,null,null,null,null,null,13]
["Karen","Nedergaard",36.6,null,null,null,null,null,null,null,null,null,null,null,null,null,null,null,null,null,null,null,0]
["Lone","Nielsen",37.5,4,4,8,10,8,null,10,6,4,6,8,4,6,null,null,5,3,5,null,91]
["Lene","Finne-Ipsen",38,null,null,null,null,null,null,null,null,null,null,null,null,null,null,null,null,null,null,null,0]
["Tove","Thomsen",38.6,6,null,null,null,5,null,null,null,null,null,null,null,null,null,3,null,null,null,null,14,0]
["Maybrith","Kallehave",44.3,null,null,null,null,null,null,null,null,null,null,null,7,3,-2,null,null,null,null,null,8,0]
["Søs ","Graae",32.799999999999997,8,null,null,7,null,null,null,8,null,null,null,null,null,null,null,null,null,null,null,23,0]
["Birthe","Jarlfeldt",39.6,7,null,10,null,null,null,7,5,null,8,null,null,null,null,10,null,null,null,null,47,0]
["Marianne","Lusty",35.6,null,null,null,null,-2,null,null,null,3,null,null,null,null,null,-2,null,null,null,null,-1,0]
[null,null,null,null,null,null,null,null,null,null,null,null,null,null,null,null,null,null,null,null,null,null,0,0]
[null,null,null,null,null,null,null,null,null,null,null,null,null,null,null,null,null,null,null,null,null,null,0,0]
[null,null,null,null,null,null,null,null,null,null,null,null,null,null,null,null,null,null,null,null,null,null,0,0]
[null,null,null,null,null,null,null,null,null,null,null,null,null,null,null,null,null,null,null,null,null,null,0]
[null,null,null,null,null,null,null,null,null,null,null,null,null,null,null,null,null,null,null,null,null,null,0]
[null,null,null,null,null,null,null,null,null,null,null,null,null,null,null,null,null,null,null,null,null,null,0]
[null,null,null,null,null,null,null,null,null,null,null,null,null,null,null,null,null,null,null,null,null,null,0]
[null,null,null,null,null,null,null,null,null,null,null,null,null,null,null,null,null,null,null,null,null,null,0]

{"sheet":"9-huls Damerække","index":2,"n_rows":42,"n_cols":25,"rows_kept":42,"cut":false,"hidden":false,"merged":[]}
["9-Huls Damerække",null,null,null,null,null,null,null,null,null,null,null,null,null,null,null,null,null,null,null,null,null,null,"ÅR","10 bedste score"]
["Hcp +8 - 54,0",null,"hcp.","2022-04-08","2022-04-22","2022-04-29","2022-05-06","2022-06-03","2022-06-10","2022-06-24","2022-06-30","2022-07-07","2022-07-14","2022-07-21","2022-07-28","2022-08-04","2022-08-19","2022-08-26","2022-09-02","2022-09-08","2022-09-16","2022-09-23","2022-09-30",2022,2022]
[]
["Lisbeth Berger","Frederiksen",27.8,5,null,4,6,4,7,6,5,null,7,8,5,10,10,null,null,null,6,6,null,{"$f":"SUM(D4:V4)","v":89}]
["Mette","Tornøe",28.1,null,7,null,null,null,null,null,null,null,null,null,null,8,null,null,null,null,null,null,null,15]
["Lone","Arngren",32.299999999999997,null,null,null,null,null,null,5,null,3,null,null,null,7,3,10,5,5,null,7,5,45]
["Karen","Bergenholtz",33.4,null,null,null,null,null,null,null,null,7,null,7,3,null,null,null,null,10,null,null,null,27]
["Birgit","Palludan",34.200000000000003,null,null,null,null,null,null,null,null,null,null,null,null,null,null,null,null,null,null,null,null,0]
["Karin","Hahn",35.700000000000003,null,null,null,null,null,null,null,null,null,null,null,null,null,null,null,null,null,null,null,null,0]
["Ann","Sorgenfrei",36.5,null,null,5,null,null,null,null,null,6,null,null,8,null,7,null,null,null,5,null,8,31]
["Lisbeth","Løhndorf",37.799999999999997,null,null,null,null,null,null,null,null,null,null,null,null,null,null,null,null,null,null,null,null,0]
["Lene","Tholsgaard",38.9,10,null,6,null,null,10,null,null,null,null,null,null,4,null,null,null,null,10,8,10,48]
["Ingrid","Bason",39,3,null,10,null,null,null,null,null,null,null,null,null,null,null,null,null,null,null,null,null,13]
["Pernille","Rosenstand",39.4,null,null,null,null,null,null,10,null,null,null,null,null,null,null,null,null,null,null,null,null,10]
["Conni","Thomsen",40.1,6,8,8,7,5,5,8,7,8,null,4,4,5,4,null,null,null,null,null,6,79]
["Ellis","Poulsen",40.4,null,10,null,null,null,6,4,4,null,8,3,null,3,8,null,10,6,null,null,3,62]
["Lena","Brenting",40.6,null,null,null,null,null,null,null,null,null,null,null,null,null,null,null,null,null,null,null,null,0]
["Vibeke","Sunesen",41,null,null,3,4,3,null,null,null,null,10,null,6,null,null,null,null,null,7,null,null,33]
["Karen","Kristiansen",41.8,4,5,null,null,7,null,null,8,10,6,6,null,null,5,4,null,8,4,null,7,67]
["Lilian","Kristensen",42,null,null,null,null,6,null,null,3,null,null,null,null,null,null,null,null,null,null,null,null,9]
["Lene","Jørgensen",45,null,null,null,5,null,3,3,10,null,null,10,7,6,null,8,6,3,3,3,null,67]
["Marianne","Andersen",45.6,8,4,null,3,null,4,null,null,5,null,null,10,null,null,null,3,5,null,5,null,47]
["Margarethe","Andresen",46.2,7,6,7,10,10,8,7,null,null,5,5,null,null,6,5,8,7,null,10,4,101]
["Jytte","Johansen",48.5,null,null,null,null,null,null,null,null,null,null,null,null,null,null,null,null,null,null,null,null,0]
["Jani","Hansen",52.4,null,3,null,8,null,null,null,null,4,null,null,null,null,null,6,7,null,8,4,null,40]
["Marianne Estrup","Risgaard",52.4,null,null,null,null,null,null,null,null,null,null,null,null,null,null,null,null,null,null,null,null,0]
["Birte","Dinesen",53,null,null,null,null,null,null,null,null,null,null,null,null,null,null,null,null,null,null,null,null,0]
["Marianne W.","Jørgensen",54,null,null,null,null,null,null,null,null,null,null,null,null,null,null,null,null,4,null,null,null,4]
[null,null,null,null,null,null,null,null,null,null,null,null,null,null,null,null,null,null,null,null,null,null,null,0]
["Ingrid","Bason",37.5,null,null,null,null,8,null,null,6,null,null,null,null,null,null,7,4,null,null,null,null,25]
[null,null,null,null,null,null,null,null,null,null,null,null,null,null,null,null,null,null,null,null,null,null,null,0]
[null,null,null,null,null,null,null,null,null,null,null,null,null,null,null,null,null,null,null,null,null,null,null,0]
[null,null,null,null,null,null,null,null,null,null,null,null,null,null,null,null,null,null,null,null,null,null,null,0]
[null,null,null,null,null,null,null,null,null,null,null,null,null,null,null,null,null,null,null,null,null,null,null,{"$f":"SUM(D34:V34)","v":0}]
[null,null,null,null,null,null,null,null,null,null,null,null,null,null,null,null,null,null,null,null,null,null,null,0]
[null,null,null,null,null,null,null,null,null,null,null,null,null,null,null,null,null,null,null,null,null,null,null,0]
[null,null,null,null,null,null,null,null,null,null,null,null,null,null,null,null,null,null,null,null,null,null,null,0]
[null,null,null,null,null,null,null,null,null,null,null,null,null,null,null,null,null,null,null,null,null,null,null,0]
[null,null,null,null,null,null,null,null,null,null,null,null,null,null,null,null,null,null,null,null,null,null,null,0]
[null,null,null,null,null,null,null,null,null,null,null,null,null,null,null,null,null,null,null,null,null,null,null,0]
[null,null,null,null,null,null,null,null,null,null,null,null,null,null,null,null,null,null,null,null,null,null,null,0]
[null,null,null,null,null,null,null,null,null,null,null,null,null,null,null,null,null,null,null,null,null,null,null,0]

{"sheet":"9-huls Herrerække","index":3,"n_rows":35,"n_cols":25,"rows_kept":35,"cut":false,"hidden":false,"merged":[]}
["9-huls Herrerække",null,null,null,null,null,null,null,null,null,null,null,null,null,null,null,null,null,null,null,null,null,null,"ÅR","10 bedste score"]
["Hcp +8 - 54.0",null,"hcp.","2022-04-08","2022-04-22","2022-04-29","2022-05-06","2022-06-03","2022-06-10","2022-06-24","2022-06-30","2022-07-07","2022-07-14","2022-07-21","2022-07-28","2022-08-04","2022-08-19","2022-08-26","2022-09-02","2022-09-08","2022-09-16","2022-09-23","2022-09-30",2022,2022]
[]
["Flemming","Frederiksen",18.899999999999999,7,6,null,null,null,5,7,7,null,10,null,null,null,5,7,null,null,8,null,null,{"$f":"SUM(D4:W4)","v":62}]
["John","Jørgensen",24.5,null,null,5,8,null,4,5,4,4,null,5,10,6,null,5,8,10,7,4,null,85]
["Arne","Svensson",27,null,null,null,null,null,null,null,null,null,null,null,null,null,null,null,null,null,null,null,null,0]
["Karl Erik","Lück",27.9,4,null,null,null,null,null,10,5,null,6,null,null,5,null,null,null,5,-2,null,null,33]
["Mogens","Jensen",28.2,null,null,null,4,5,8,null,null,null,null,null,null,null,7,null,7,-2,6,7,10,52]
["Jens Erik","Thomsen",28.6,5,4,6,3,null,7,6,null,null,null,8,6,8,null,null,null,null,null,null,3,56]
["Erik","Korsholm",28.6,null,null,null,null,null,null,null,null,null,null,null,null,null,null,null,null,null,null,null,null,0]
["Søren","Andersen",28.7,8,null,null,null,8,10,null,8,8,8,null,null,null,null,null,null,6,null,null,null,56]
["Franck","Mikkelsen",28.9,6,5,4,null,6,null,8,10,null,null,6,5,4,10,null,3,8,null,5,7,87]
["Ib","Ohlsen",30.5,null,null,null,null,null,null,null,3,null,null,3,null,null,null,6,null,null,null,null,null,12]
["Harry M.","Christensen",31.1,null,10,null,null,7,null,null,null,null,null,null,null,null,null,null,5,null,null,null,null,22]
["Jens Christian","Andersen",31.4,null,null,null,null,null,null,null,null,null,null,null,null,null,null,null,null,null,null,null,null,0]
["Steen","Rasmussen",31.6,3,null,null,null,null,null,null,null,10,null,10,7,7,null,null,null,null,null,null,null,37]
["Evan","Næve",34.200000000000003,10,8,8,6,3,6,4,null,5,null,null,null,10,null,3,6,null,10,3,null,82]
[]
["Ole Stormly","Hansen",35.200000000000003,null,7,10,10,10,null,3,null,null,null,null,3,null,null,4,10,null,null,8,4,69]
["Alex","Johansen",35.9,null,null,null,null,null,null,null,null,null,null,null,null,null,null,null,null,null,null,null,null,0]
["Michael","Tødten",36.1,null,null,3,null,null,null,null,null,3,null,null,null,null,null,null,null,null,null,null,null,6]
["Ole","Winther",36.299999999999997,null,3,null,null,null,null,null,6,7,null,null,null,null,3,null,null,null,null,null,6,25]
["Bent","Sønderby",37.200000000000003,null,null,null,null,null,null,null,null,null,null,null,null,null,null,null,null,null,3,null,null,3]
["Finn Gross","Jørgensen",38.1,null,null,null,null,null,null,null,null,null,null,null,8,null,null,null,null,7,null,null,null,15]
["Helge","Jensen",41.5,null,null,null,7,null,null,null,null,6,null,null,null,null,6,8,4,null,4,6,8,49]
["Jørgen","Albæk",48,null,null,null,null,null,null,null,null,null,null,null,null,null,8,null,null,null,null,10,null,18]
[" Peter Bomholt","Andersen",39.700000000000003,null,null,null,null,null,null,null,null,null,7,4,null,3,4,null,null,null,null,null,null,18]
["Finn Saaby","Nielsen",43.9,null,null,null,null,null,null,null,null,null,null,null,null,null,null,10,null,null,null,null,null,10]
["Jens","Leth",34.5,null,null,7,5,4,3,null,null,null,null,7,4,null,null,null,null,4,5,null,5,44]
[null,null,null,null,null,null,null,null,null,null,null,null,null,null,null,null,null,null,null,null,null,null,null,0]
[null,null,null,null,null,null,null,null,null,null,null,null,null,null,null,null,null,null,null,null,null,null,null,0]
[null,null,null,null,null,null,null,null,null,null,null,null,null,null,null,null,null,null,null,null,null,null,null,0]
[null,null,null,null,null,null,null,null,null,null,null,null,null,null,null,null,null,null,null,null,null,null,null,0]
[null,null,null,null,null,null,null,null,null,null,null,null,null,null,null,null,null,null,null,null,null,null,null,0]
[null,null,null,null,null,null,null,null,null,null,null,null,null,null,null,null,null,null,null,null,null,null,null,0]

{"sheet":"Ark1","index":4,"n_rows":0,"n_cols":0,"rows_kept":0,"cut":false,"hidden":false,"merged":[]}

{"sheet":"Ark2","index":5,"n_rows":0,"n_cols":0,"rows_kept":0,"cut":false,"hidden":false,"merged":[]}